Cogmind - Beta 15 @@@ ROGUE MODE // 2025.08.03 @ 15:05:14 Player: C0-2MO Result: Destroyed self with Mini Grenade Launcher Performance ------------- Evolutions (1) 500 Regions Visited (4) 800 Robots Destroyed (105) 525 Value Destroyed (2919) 2919 Prototype IDs (6) 120 Alien Tech Used (0) 0 Bonus (1950) 1950 TOTAL SCORE: 6814 Bonus ------- Triggered High Security 500 High Alert Combat Kills 1450 Cogmind --------- Core Integrity 0/400 Matter 290/300 Energy 90/100 System Corruption 0% Temperature Cool (0) Movement Flying (32) Location -9/Mines Parts ------- > --- POWER (1) -------- (None) > --- PROPULSION (3) --- Hover Unit VTOL Module Surge Thruster > --- UTILITY (3) ------ Improved Heat Sink Cooling System Hacking Suite > --- WEAPON (2) ------- Mini Grenade Launcher Katana > --- INVENTORY (5) ---- Melee Analysis Suite Improved Propulsion Shielding Utility Shielding Mini Grenade Launcher Heavy Hammer Peak State ------------ > --- POWER ------------ Light Ion Engine > --- PROPULSION ------- Flight Unit VTOL Module Surge Thruster > --- UTILITY ---------- Improved Propulsion Shielding Improved Propulsion Shielding Utility Shielding > --- WEAPON ----------- Mini Grenade Launcher Katana > --- INVENTORY -------- Flight Unit Melee Analysis Suite Improved Propulsion Shielding EM Pulse Gun Plasma Cutter [Rating: 20] Favorites ----------- Power Light Ion Engine Engine Light Ion Engine Propulsion Flight Unit Treads Advanced Treads Hover Unit Hover Unit Flight Unit Flight Unit Utility Utility Shielding Device Cooling System Processor Machine Analyzer Hackware Hacking Suite Protection Utility Shielding Weapon Mini Grenade Launcher Energy Gun EM Pulse Gun Ballistic Gun Light Assault Rifle Launcher Mini Grenade Launcher Impact Weapon Heavy Hammer Slashing Weapon Katana Build | -11 -10 -10 -9 -9 ------- Run | Yrd Mat Min Mat Min Slots Evolved 2 | . . . 2 . Power . | . . . . . Propulsion 1 | . . . 1 . Utility 1 | . . . 1 . Weapon . | . . . . . Parts Attached 41 | 5 9 3 24 . Power 4 | . 1 . 3 . Engine 4 | . 1 . 3 . Core . | . . . . . Reactor . | . . . . . Propulsion 11 | 2 3 1 5 . Treads 5 | 2 . . 3 . Leg . | . . . . . Wheel . | . . . . . Hover 2 | . 1 . 1 . Flight 4 | . 2 1 1 . Utility 11 | . 1 2 8 . Device 4 | . 1 1 2 . Storage . | . . . . . Processor 1 | . . . 1 . Hackware 1 | . . . 1 . Protection 5 | . . 1 4 . Artifact . | . . . . . Weapon 15 | 3 4 . 8 . Energy Gun 5 | 3 2 . . . Energy Cannon . | . . . . . Ballistic Gun 2 | . . . 2 . Ballistic Cannon . | . . . . . Launcher 6 | . 2 . 4 . Special Weapon . | . . . . . Impact Weapon 1 | . . . 1 . Slashing Weapon 1 | . . . 1 . Piercing Weapon . | . . . . . Special Melee Weapon . | . . . . . Unidentified Prototypes 2 | . . . 2 . Parts Lost 5 | . . . 5 . Power 2 | . . . 2 . Propulsion 2 | . . . 2 . Utility 1 | . . . 1 . Weapon . | . . . . . Highest Loss Streak 2 | . . . 2 . To Critical Strikes . | . . . . . Average Backups 4 | . 2 4 4 5 Power . | . . . . . Propulsion . | . . . . . Utility 1 | . . . 2 3 Weapon 1 | . 2 2 1 2 Tool/Special . | . . . . . Unused Backups 3 | . . . 1 2 Power . | . . . . . Propulsion . | . . . . . Utility 2 | . . . . 2 Weapon . | . . . . . Tool/Special 1 | . . . 1 . Average Slot Usage (%) 83 | . 70 85 85 88 Engine 2 | . 4 14 1 . Treads 2 | . 2 . 2 . Hover 2 | . 3 . 2 11 Flight 25 | . 20 28 26 22 Device 7 | . 11 14 6 22 Processor 2 | . . . 2 . Hackware 5 | . . . 6 11 Protection 14 | . . 11 16 . Energy Gun 1 | . 11 2 . . Launcher 14 | . 15 14 14 11 Impact Weapon 1 | . . . 2 . Slashing Weapon 3 | . . . 4 11 Peak Build Rating 20 | 4 8 11 20 20 Average Rating 15 | 3 7 10 17 20 On Entrance 8 | . 4 8 11 20 Naked Turns . | . . . . . Heaviest Build 10 | 3 6 7 10 6 Greatest Support 64 | 3 8 8 64 7 Greatest Overweight (x) 1 | . . . 1 . Average Overweight (x) . | . . . . . Largest Inventory Capacity 5 | 5 5 5 5 5 Average Capacity 5 | 5 5 5 5 5 Most Carried 5 | 1 4 5 5 5 Average Carried 4 | . 3 4 4 5 Final Capacity 5 | 5 5 5 5 5 Final Carried 5 | 1 4 5 5 5 Class Distribution -------------------- 73% | Sprinter 26% | Mutant Dominant Class ---------------- Mutant | -10/Materials Mutant | -10/Mines Sprinter | -9/Materials Sprinter | -9/Mines Resources | -11 -10 -10 -9 -9 ----------- Run | Yrd Mat Min Mat Min Matter Collected 2035 | 250 41 198 1546 . Remotely . | . . . . . Salvage Created 2341 | 107 109 12 2113 . Parts 150 | 5 14 3 128 . Haulers Intercepted 5 | . . . 5 . Recyclers Shooed 2 | . 1 . 1 . Parts Field Recycled . | . . . . . Retrieved Matter . | . . . . . Parts Self-Destructed . | . . . . . Prevented . | . . . . . Kills | -11 -10 -10 -9 -9 ------- Run | Yrd Mat Min Mat Min Combat Hostiles Destroyed 73 | . 7 3 63 . Melee 3 | . . . 3 . AOE 69 | . 7 3 59 . Classes Destroyed 14 | 2 4 . 8 . Worker 6 | . . . 6 . Builder 4 | . . . 4 . Tunneler 2 | 1 . . 1 . Hauler 5 | . . . 5 . Recycler 5 | 1 . . 4 . Mechanic 3 | . . . 3 . Operator 3 | . 3 . . . Watcher 4 | . 1 . 3 . Swarmer 7 | . 4 3 . . Grunt 43 | . 3 . 40 . Brawler 5 | . . . 5 . Duelist 6 | . . . 6 . Protector 3 | . . . 3 . Sentry 9 | . . . 9 . Best Kill Streak 15 | 2 4 3 15 . Combat Bots Only 14 | . 3 3 14 . Max Kills in Single Turn 5 | 1 3 2 5 . Gunslinging . | . . . . . Exploded 4 | . 2 2 4 . Melee 1 | . . . 1 . Uniques/NPCs Destroyed . | . . . . . Combat | -11 -10 -10 -9 -9 -------- Run | Yrd Mat Min Mat Min Hostile Shots Fired 156 | . 12 3 138 3 Missed 81 | . 7 3 69 2 Hits 75 | . 5 . 69 1 Projectile 75 | . 5 . 69 1 Critical Strikes 2 | . . . 2 . Actively Blocked 1 | . . . 1 . Damage Taken 1276 | . 104 . 1125 47 Core 460 | . 31 . 382 47 Absorbed by Shields . | . . . . . Redirected to Shielding 256 | . . . 256 . Regen/Repaired (Parts) 58 | . 16 . 42 . Core Remaining (%) 93 | 100 . 87 . . Volleys Fired 82 | 6 14 2 59 1 Largest 2 | 2 2 1 2 1 Hottest 80 | 80 80 30 60 30 Shots Fired 140 | 12 24 2 101 1 Gun 20 | 12 8 . . . Cannon . | . . . . . Launcher 120 | . 16 2 101 1 Special . | . . . . . Kinetic . | . . . . . Thermal 7 | 6 1 . . . Explosive 120 | . 16 2 101 1 Electromagnetic 13 | 6 7 . . . Robot Hit Streak 13 | 4 6 . 13 . Robot Miss Streak 3 | 1 3 . 3 1 Penetration Max . | . . . . . Secondary Targets . | . . . . . Shots Hit Robots 126 | 9 10 . 107 . Core Hits 168 | 3 13 4 148 . Critical Kills . | . . . . . Critical Parts Destroyed 1 | . . . 1 . Critical Strikes 4 | . . . 4 . Smash 1 | . . . 1 . Sever 3 | . . . 3 . Melee Attacks 84 | . . . 84 . Impact 36 | . . . 36 . Slashing 48 | . . . 48 . Piercing . | . . . . . Sneak Attacks 12 | . . . 12 . Combat Hostiles . | . . . . . Follow-up Attacks 2 | . . . 2 . Damage Inflicted 9766 | 148 894 116 8608 . Guns 164 | 101 63 . . . Cannons . | . . . . . Explosions 7476 | 47 831 116 6482 . Melee 2126 | . . . 2126 . Ramming . | . . . . . Kinetic . | . . . . . Thermal 105 | 93 12 . . . Explosive 7376 | . 831 116 6429 . Electromagnetic 159 | 55 51 . 53 . Impact 743 | . . . 743 . Slashing 1383 | . . . 1383 . Piercing . | . . . . . Highest Corruption . | . . . . . Average Corruption . | . . . . . Corruption Purged . | . . . . . Corruption Blocked . | . . . . . Overload Shots . | . . . . . Overflow Damage 454 | . 1 . 453 . Projectiles . | . . . . . Explosions 96 | . 1 . 95 . Melee 358 | . . . 358 . Knockbacks 2 | . . . 2 . Impact 2 | . . . 2 . Kinetic . | . . . . . Secondary . | . . . . . Self-Inflicted Damage 259 | . . . 222 37 Shots 10 | . . . 9 1 Rammed 1 | . . . 1 . Targets Rammed 1 | . . . 1 . Kicked . | . . . . . Crushed . | . . . . . Highest Temperature 314 | 12 19 . 314 . Average Temperature 31 | 5 8 . 41 . Received Heat Transfer 468 | . 45 . 423 . Siege Activations . | . . . . . Martial Activations . | . . . . . Shielding Activations . | . . . . . Robots Disrupted . | . . . . . Combat Hostiles . | . . . . . Robots Corrupted 3 | . . . 3 . Combat Hostiles 1 | . . . 1 . Parts Fried 9 | . 1 . 8 . Impact Corruptions 9 | . . . 9 . Robots Melted . | . . . . . Combat Hostiles . | . . . . . Parts Melted . | . . . . . Heat Transferred 125 | 100 25 . . . Parts Sabotaged . | . . . . . Parts Stolen . | . . . . . Parts Stripped . | . . . . . Power Chain Reactions 1 | 1 . . . . Alert | -11 -10 -10 -9 -9 ------- Run | Yrd Mat Min Mat Min Maximum Alert Level 5 | . 1 . 5 4 Low Security (%) 13 | 100 29 100 5 . Level 1 15 | . 70 . 8 . Level 2 11 | . . . 14 . Level 3 11 | . . . 14 . Level 4 8 | . . . 10 100 Level 5 . | . . . . . High Security 39 | . . . 47 . Max Security . | . . . . . Sterilizations 1 | . . . 1 . Peak Influence 2239 | 5 377 159 2239 1100 Initial 1100 | . 3 94 53 1100 Average 1177 | 1 232 114 1396 1100 Influence Increases 3354 | 10 516 85 2737 6 Destroy 0b10 Robot/C 1400 | . 140 60 1200 . Destroy 0b10 Robot/NC 175 | 10 20 . 145 . Destroy Leader 298 | . 32 10 256 . Successful Hack 98 | . 27 . 71 . Select Force Hacks 120 | . 60 . 60 . Disable Machine 165 | . 75 . 90 . Destroy Structure 543 | . 102 15 420 6 Partial Spotted 180 | . 15 . 165 . Lose Combat Pursuer 375 | . 45 . 330 . Influence Decreases 2475 | 5 279 188 637 1366 Entered New Map 1602 | . 2 148 86 1366 Time Decay 588 | 5 127 40 416 . Lost Part 50 | . . . 50 . Lost Ally 10 | . . . 10 . Purge Threat 225 | . 150 . 75 . Squads Dispatched 17 | . 3 1 13 . Investigation 11 | . 2 1 8 . Extermination . | . . . . . Reinforcement 1 | . 1 . . . Assault 5 | . . . 5 . Garrison . | . . . . . Intercept . | . . . . . Searches Triggered . | . . . . . Construction Impeded . | . . . . . Haulers Reinforced . | . . . . . Active Scanning Responses . | . . . . . Cargo Convoy Interrupts . | . . . . . Stealth | -11 -10 -10 -9 -9 --------- Run | Yrd Mat Min Mat Min Distress Signals 5 | . 1 . 4 . Communications Jammed . | . . . . . Distress Signals . | . . . . . Times Spotted 128 | . 19 4 102 3 Peak Tracking Total 11 | . 5 3 11 3 Tactical Retreats 11 | . 1 . 10 . Traps | -11 -10 -10 -9 -9 ------- Run | Yrd Mat Min Mat Min Traps Triggered 2 | . 1 . 1 . Indirectly . | . . . . . Trap Hack Attempts . | . . . . . Triggered . | . . . . . Disarmed . | . . . . . Reprogrammed . | . . . . . Reused . | . . . . . Traps Extracted . | . . . . . Installed . | . . . . . Triggered . | . . . . . Machines | -11 -10 -10 -9 -9 ---------- Run | Yrd Mat Min Mat Min Machines Disabled 13 | . 5 . 8 . Max in Single Turn 1 | . 1 . 1 . Machines Repaired . | . . . . . Machines Dismantled . | . . . . . Machines Sabotaged . | . . . . . Overloaded Fab Kills . | . . . . . Hacking | -11 -10 -10 -9 -9 --------- Run | Yrd Mat Min Mat Min Machines Accessed 27 | . 9 1 17 . Terminals 17 | . 6 . 11 . Fabricators . | . . . . . Repair Stations 3 | . 1 . 2 . Recycling Units 4 | . 2 . 2 . Scanalyzers 2 | . . . 2 . Garrison Access . | . . . . . Total Hacks 91 | . 28 1 62 . Successful 60 | . 19 1 40 . Failed 31 | . 9 . 22 . Catastrophic 4 | . . . 4 . Database Lockouts . | . . . . . Manual 66 | . 23 . 43 . Terminals 67 | . 23 . 44 . Fabricators . | . . . . . Repair Stations 8 | . 3 . 5 . Recycling Units 6 | . 2 . 4 . Scanalyzers 9 | . . . 9 . Garrison Access . | . . . . . Terminal Hacks 14 | . 6 1 7 . Robot Analysis 3 | . 2 . 1 . Prototype ID Bank 1 | . . . 1 . Open Door 1 | . . 1 . . Terminal Index 2 | . 1 . 1 . Unreport Threat 2 | . 1 . 1 . Registered Prototypes 1 | . . . 1 . Zone Layout 4 | . 2 . 2 . Fabricator Hacks . | . . . . . Repair Station Hacks 4 | . 2 . 2 . Scan Component 2 | . 1 . 1 . Repair 2 | . 1 . 1 . Recycling Unit Hacks . | . . . . . Scanalyzer 8 | . . . 8 . Insert Component 4 | . . . 4 . Analyze 4 | . . . 4 . Garrison Access Hacks . | . . . . . Unauthorized Hacks 34 | . 11 . 23 . Terminals 26 | . 9 . 17 . Track 2 | . . . 2 . Assimilate 1 | . . . 1 . Botnet 9 | . 4 . 5 . Disrupt 2 | . . . 2 . Skim 12 | . 5 . 7 . Fabricators . | . . . . . Repair Stations 2 | . . . 2 . Patch 2 | . . . 2 . Recycling Units 5 | . 2 . 3 . Reject 1 | . . . 1 . Mask 1 | . . . 1 . Tunnel 3 | . 2 . 1 . Scanalyzers 1 | . . . 1 . Extract 1 | . . . 1 . Garrison Access . | . . . . . Data Cores Recovered 1 | . 1 . . . Used . | . . . . . Hacking Detections 20 | . 7 . 13 . Full Trace Events 4 | . 1 . 3 . Feedback Events . | . . . . . Feedback Blocked . | . . . . . Robot Schematics Acquired . | . . . . . Robots Built . | . . . . . Authchips . | . . . . . Time . | . . . . . Total Robot Build Rating . | . . . . . Part Schematics Acquired 15 | . . . 15 . Parts Built . | . . . . . Authchips . | . . . . . Time . | . . . . . Total Part Build Rating . | . . . . . Parts Repaired 2 | . 1 . 1 . Time 39 | . 13 . 26 . Parts Recycled . | . . . . . Recycled Matter . | . . . . . Retrieved Matter . | . . . . . Retrieved Components . | . . . . . Parts Scanalyzed 4 | . . . 4 . Part Schematics Acquired 4 | . . . 4 . Parts Damaged . | . . . . . Bothacking | -11 -10 -10 -9 -9 ------------ Run | Yrd Mat Min Mat Min Used RIF Installer . | . . . . . Robots Hacked . | . . . . . Non-combat . | . . . . . Combat . | . . . . . Robot Hacks Applied . | . . . . . Relay Couplers Released . | . . . . . Fabnet Peak Effective % . | . . . . . Robots Rewired . | . . . . . Allies Hacked . | . . . . . Hacks Repelled . | . . . . . Allies | -11 -10 -10 -9 -9 -------- Run | Yrd Mat Min Mat Min Total Allies 1 | . . . 1 . Largest Group 1 | . . . 1 . Highest-Rated Group 10 | . . . 10 . Highest-Rated Ally 10 | . . . 10 . Total Orders . | . . . . . Ally Attacks . | . . . . . Total Damage . | . . . . . Kills . | . . . . . Allies Corrupted . | . . . . . Allies Melted . | . . . . . Intel | -11 -10 -10 -9 -9 ------- Run | Yrd Mat Min Mat Min Active Infowar (turns) 471 | . . . 471 . Machine Analysis 471 | . . . 471 . Robot Analysis Total 3 | . 2 . 1 . Derelict Logs Recovered 1 | . . 1 . . Drone Launches . | . . . . . Drone Recoveries . | . . . . . Exploration | -11 -10 -10 -9 -9 ------------- Run | Yrd Mat Min Mat Min Turns Passed 2369 | 46 289 91 1939 4 Spaces Moved 3642 | 39 504 229 2860 10 Core 71 | 39 31 . 1 . Treads 59 | . . . 59 . Legs . | . . . . . Wheels . | . . . . . Hover . | . . . . . Flight 3512 | . 473 229 2800 10 Fastest Speed 30 | 50 37 34 30 32 Average Speed 34 | 50 38 34 33 32 Slowest Speed 150 | 50 50 37 150 32 Overloaded Moves . | . . . . . Propulsion Burnouts . | . . . . . Robots Hopped 25 | . 1 7 17 . Potential Cave-ins 4 | . . . 4 . Cave-ins Triggered . | . . . . . Exploration Rate (%) 50 | 5 88 51 99 7 Regions Visited 4 Branch Regions 2 Pre-discovered Areas 5 | . 3 . 2 . Known Exits Taken 1 | . . 1 . . Unknown Exits Taken 3 | 1 1 . 1 . Scrap Searched 1 | . . 1 . . Spaces Dug 31 | . . . 31 . Terrain Destroyed 685 | 8 135 21 515 6 Melee 22 | . . . 22 . Projectile . | . . . . . AOE 663 | 8 135 21 493 6 Terrain Rammed . | . . . . . Walls Destroyed . | . . . . . Machines Disabled . | . . . . . Actions | -11 -10 -10 -9 -9 --------- Run | Yrd Mat Min Mat Min Total 4448 | 50 568 232 3587 11 Wait 549 | . 32 1 516 . Move 3588 | 38 501 215 2824 10 Hop 24 | . 1 6 17 . Pick Up 15 | 1 3 1 10 . Fast Attach 37 | 4 8 2 23 . Attach 5 | . . . 5 . Detach 5 | . 1 1 3 . Swap 25 | 1 3 1 20 . Drop 36 | . 5 3 28 . Fire 82 | 6 14 2 59 1 Melee 80 | . . . 80 . Ram . | . . . . . Kick . | . . . . . Crush 1 | . . . 1 . Escape Stasis 1 | . . . 1 . Rewire . | . . . . . Trap . | . . . . . Miscellaneous . | . . . . . Route ------- -11/Scrapyard -10/Materials (discovered 5 exits: *Mat x3 / *Min / Sub) -10/Mines (discovered 3 exits: *Mat x2 / *Exi) -9/Materials (discovered 4 exits: *Mat x3 / [*Min]) -9/Mines (discovered 2 exits: Mat x2) History --------- Turn | Location | Event 11 | -11/Scrapyard | Discovered new exit (range 15) 47 | -11/Scrapyard | Entered Materials 105 | -10/Materials | Discovered new exit (range 16) 131 | -10/Materials | Discovered new exit (range 8) 193 | -10/Materials | Learned 2 Storage zone layouts 226 | -10/Materials | Learned location of Recycling (-8) 247 | -10/Materials | Identified exit to Subcaves 254 | -10/Materials | Repaired Flight Unit 262 | -10/Materials | Identified exit to Materials 264 | -10/Materials | Learned 2 Mines zone layouts 273 | -10/Materials | Learned 2 Mines zone layouts 313 | -10/Materials | Build established: Mutant 336 | -10/Materials | Entered Mines 338 | -10/Mines | Identified exit to Exiles 339 | -10/Mines | Found DCF Scrap (13 items) 346 | -10/Mines | Met a Derelict shopkeep closing up shop 397 | -10/Mines | Learned Materials stockpile data 397 | -10/Mines | Discovered exit to Materials (range 10) 417 | -10/Mines | Deemed a non-threat by the Exiles lab entrance 427 | -10/Mines | Entered Materials 427 | -9/Materials | Evolved 2 slots: Propulsion x1, Utility x1 471 | -9/Materials | Discovered new exit (range 16) 600 | -9/Materials | Destroyed 10 combat bots 632 | -9/Materials | Discovered new exit (range 11) 745 | -9/Materials | Build established: Sprinter 753 | -9/Materials | Discovered new exit (range 15) 827 | -9/Materials | First assault squad dispatched 899 | -9/Materials | Repaired Flight Unit? 1038 | -9/Materials | Learned 2 Materials zone layouts 1068 | -9/Materials | Learned 4 Materials zone layouts 1089 | -9/Materials | Identified exit to Materials 1280 | -9/Materials | Destroyed 9 combat bots 1410 | -9/Materials | Core integrity fell below 50% 1442 | -9/Materials | High security lockdown imminent 1477 | -9/Materials | Destroyed 8 combat bots 1522 | -9/Materials | High security lockdown engaged 1595 | -9/Materials | Core integrity fell below 20% 1601 | -9/Materials | Sterilization system engaged 1601 | -9/Materials | Non-combat units ordered to evacuate 1625 | -9/Materials | Destroyed 14 combat bots 1701 | -9/Materials | Combat units ordered to evacuate 1901 | -9/Materials | Ambient heat levels rising (+10) 2051 | -9/Materials | Ambient heat levels rising (+10) 2201 | -9/Materials | Ambient heat levels rising (+10) 2351 | -9/Materials | Ambient heat levels rising (+10) 2366 | -9/Materials | Entered Mines 2370 | -9/Mines | Destroyed self with Mini Grenade Launcher Last Messages --------------- Processing Tank melts. Imp. Propulsion Shielding melts. Imp. Aluminum Leg melts. Aluminum Leg melts. Terminal melts. Aluminum Leg melts. 02201_ ALERT: Ambient heat levels +10. Sml. Laser melts. Terminal melts. Imp. Aluminum Leg melts. Machine melts. Terminal melts. 02351_ ALERT: Ambient heat levels +10. LOCATION=UNKNOWN GOAL=ESCAPE 02367_ A derelict is hurriedly installing traps. Loading 2 Materials entrances... 02369_ GK-9ET(g): "Hehe, this'll put a wrench in their mining defense operations..." 02369_ GK-9ET(g) slips into the shadows. Map ----- +----------------------------------------------------+ | | | | | | | ???????????????????????????????????????? | | ???????????????????????????????????????? | | ???????????????????????????????????????? | | ???????????????????????????????????????? | | ???????????????????????????????????????? | | ???????????????????????????????????????? | | ???????????????????????????????????????? | | ???????????????????????????????????????? | | ???????????????????####??#?????????????? | | ??????????????????# ??^??????????????? | | ?????????????????? ## #??????????????? | | ?????????????????? ^ #??????????????? | | ???????#######???# # #??# ?????????? | | ???????# #### # ^ ?????????? | | ???????# ^ #????????????? | | ?????### #??????????????????? | | ????# ##s ##??????????????????? | | ????# ## ## ##??????????????????? | | ???????# ## #??????????????????? | | ???????###### #??????????????????? | | ????????????# #??????????????????? | | ????????????# ##??????????????????? | | ?????????????# @ ##???????????????????? | | ?????????????## ##????????????????????? | | ??????????????# #??????????????????????? | | ?????????????? ??????????????????????? | | ??????????????## ??????????????????????? | | ???????????????? ??????????????????????? | | ????????????????#??????????????????????? | | ???????????????????????????????????????? | | ???????????????????????????????????????? | | ???????????????????????????????????????? | | ???????????????????????????????????????? | | ???????????????????????????????????????? | | ???????????????????????????????????????? | | ???????????????????????????????????????? | | ???????????????????????????????????????? | | ???????????????????????????????????????? | | ???????????????????????????????????????? | | ???????????????????????????????????????? | | ???????????????????????????????????????? | | ???????????????????????????????????????? | | ???????????????????????????????????????? | | ???????????????????????????